bitfinex/quotes_ETHUSD_20250411
["timestamp","ask_amount","ask_price","bid_price","bid_amount"]
[1744398712677,0.98504496,1569.0,1568.7,6.37459]
[1744398712883,0.98504496,1569.0,1568.7,12.74915]
[1744398713183,0.24696724,1569.0,1568.7,6.37456]
[1744398714610,6.62047724,1569.0,1568.6,10.51250727]
[1744398714915,6.3743,1568.8,1568.4,17.66460961]
[1744398715111,6.3743,1568.8,1568.4,16.89810961]
[1744398715314,0.24465235,1568.7,1568.4,16.89810961]
[1744398715611,0.24407606,1568.6,1568.5,12.75086]
[1744398715788,0.7636,1568.9,1568.5,12.75086]
[1744398715988,0.24522856,1568.8,1568.7,6.37439]
[1744398716310,6.07,1569.0,1568.7,12.74894]
[1744398716783,0.24546688,1568.9,1568.7,12.74894]
[1744398716985,0.24546688,1568.9,1568.7,8.06303573]
[1744398717185,0.24546688,1568.9,1568.6,10.51253727]
[1744398717601,0.24546688,1568.9,1568.6,16.88752727]
[1744398718006,0.24546688,1568.9,1568.6,6.37499]
[1744398718288,0.7787,1568.8,1568.5,6.37541]
[1744398718491,1.02368417,1568.8,1568.5,12.75079]
[1744398718786,1.02368417,1568.8,1568.6,6.37511]
[1744398718981,1.02368417,1568.8,1568.5,15.16742351]
[1744398719315,1.02368417,1568.8,1568.6,6.37502]
[1744398719496,0.24498417,1568.8,1568.6,10.51253727]
[1744398719703,0.7917,1569.0,1568.6,10.51253727]
[1744398719897,0.24418806,1568.7,1568.6,11.81183216]
[1744398720195,0.7917,1569.0,1568.7,6.37462]
[1744398720392,0.7917,1569.0,1568.7,12.74924]
[1744398720596,7.16728,1569.2,1568.8,6.37415]
[1744398720787,9.97298926,1569.2,1568.8,12.74832]
[1744398720989,16.34584926,1569.2,1568.8,6.37415]
[1744398721222,0.7946,1569.0,1568.6,6.37501]
[1744398721517,7.16813,1569.0,1568.6,12.75002]
[1744398721715,7.16813,1569.0,1568.6,6.37501]
[1744398721896,8.522251,1569.0,1568.6,12.74999]
[1744398722095,2.148721,1569.0,1568.6,12.74999]
[1744398722415,0.7946,1569.0,1568.7,6.37459]
[1744398722615,0.7946,1569.0,1568.7,6.37458]
[1744398724216,0.2435082,1568.9,1568.7,6.37458]
[1744398725121,0.2435082,1568.9,1568.6,16.88747727]
[1744398726024,0.2435082,1568.9,1568.5,0.7836]
[1744398726243,7.13197,1568.8,1568.4,0.00898234]
[1744398726525,7.35870502,1568.9,1568.6,6.37484]
[1744398726526,6.3135082,1568.9,1568.6,6.37484]
[1744398726723,0.24201371,1568.7,1568.6,12.74976]
[1744398726894,6.07,1568.9,1568.6,14.103046]
[1744398727094,0.24201371,1568.7,1568.6,14.103046]
[1744398727312,6.07,1568.9,1568.6,14.103046]
[1744398727518,6.07,1568.9,1568.7,6.37469]
[1744398727916,6.07,1568.9,1568.7,12.74928]
[1744398728119,6.76,1569.3,1568.7,12.74928]
[1744398728120,6.07,1569.4,1568.7,2.65150833]
[1744398728337,0.816,1569.4,1569.1,6.37308]
[1744398728694,0.816,1569.4,1569.1,6.37297]
[1744398728919,13.56024,1569.4,1568.9,6.37369]
[1744398729127,13.56024,1569.4,1568.9,12.74745]
[1744398729322,7.18799,1569.4,1569.0,6.3734]
[1744398729528,7.18799,1569.4,1569.0,12.74678]
[1744398730335,15.523188,1569.4,1569.0,6.37338]
[1744398730734,15.523188,1569.4,1568.9,6.37384]
[1744398731027,15.523188,1569.4,1568.9,12.74761]
[1744398731229,9.150938,1569.4,1569.0,6.37346]
[1744398731737,9.150938,1569.4,1569.0,12.74683]
[1744398731923,7.18799,1569.4,1569.0,14.021513]
[1744398732236,7.18799,1569.4,1569.0,7.648053]
[1744398732434,7.18799,1569.4,1569.0,14.021403]
[1744398732737,7.18799,1569.4,1569.0,7.648033]
[1744398732904,13.56025,1569.4,1568.8,4.92101727]
[1744398733108,7.18799,1569.4,1568.9,6.37373]
[1744398733329,6.37227,1569.3,1568.9,12.74751]
[1744398733726,13.56025,1569.4,1568.9,12.74751]
[1744398734108,7.18799,1569.4,1568.9,12.74751]
[1744398734340,15.522957,1569.4,1568.9,12.74751]
[1744398735439,0.8118,1569.2,1568.8,6.37428]
[1744398735644,6.3731,1569.1,1568.7,6.37443]
[1744398735820,0.7685,1569.0,1568.7,12.74901]
[1744398736440,0.1976,1568.9,1568.7,6.37443]
[1744398737431,0.1976,1568.9,1568.7,12.74901]
[1744398737731,0.1976,1568.9,1568.7,6.37443]
[1744398738026,0.1976,1568.9,1568.6,7.14832]
[1744398738230,0.7685,1568.8,1568.6,6.37502]
[1744398739122,0.7685,1568.8,1568.5,16.88829727]
[1744398739321,0.24299096,1568.7,1568.5,12.75078]
[1744398739846,0.24299096,1568.7,1568.6,6.37511]
[1744398740145,0.9661,1568.9,1568.6,6.37511]
[1744398740346,0.24299096,1568.7,1568.6,6.37511]
[1744398740542,0.9661,1568.9,1568.6,12.75022]
[1744398740712,0.24299096,1568.7,1568.6,12.75022]
[1744398740917,0.9661,1568.9,1568.6,12.75022]
[1744398741218,0.24299096,1568.7,1568.6,6.37511]
[1744398741646,0.9661,1568.9,1568.6,6.37511]
[1744398741846,0.24356717,1568.8,1568.6,6.37511]
[1744398742142,8.074049,1568.9,1568.5,6.37535]
[1744398742337,0.24299096,1568.7,1568.5,12.75074]
[1744398742516,1.700059,1568.9,1568.6,6.37511]
[1744398742950,1.700059,1568.9,1568.6,12.75009]
[1744398743152,0.9661,1568.9,1568.5,10.51302727]
[1744398743354,0.9661,1568.9,1568.5,16.88841727]
[1744398743917,13.71415,1568.9,1568.5,6.37539]
[1744398744742,7.34001,1568.9,1568.5,12.75079]
[1744398744942,7.34001,1568.9,1568.5,6.37539]
[1744398745148,0.734001,1568.8,1568.5,6.37539]
[1744398745852,0.734001,1568.8,1568.5,12.75079]
[1744398746167,0.9661,1568.9,1568.6,6.37499]
[1744398746343,0.1976,1568.9,1568.7,7.20474]
[1744398746543,0.1976,1568.9,1568.8,6.37429]
[1744398746750,0.1976,1568.9,1568.7,7.20474]
[1744398746751,0.1976,1568.9,1568.7,6.37444]
[1744398746923,0.1976,1568.9,1568.7,7.20704]
[1744398747120,0.1976,1568.9,1568.7,14.302324]
[1744398750288,0.1976,1568.9,1568.8,6.37429]
[1744398750763,0.1976,1568.9,1568.8,6.4380293]
[1744398750926,0.1976,1568.9,1568.8,6.37429]
[1744398751118,0.1976,1568.9,1568.8,6.4380224]
[1744398751353,0.1976,1568.9,1568.8,8.91082291]
[1744398751733,0.1976,1568.9,1568.6,6.37501]
[1744398751931,0.9716,1568.9,1568.6,6.37501]
[1744398752149,0.9716,1568.9,1568.6,12.75001]
[1744398752546,0.9716,1568.9,1568.6,6.375]
[1744398752748,0.9716,1568.9,1568.6,6.37499]
[1744398752928,0.9716,1568.9,1568.5,18.02092727]
[1744398753134,0.1976,1568.9,1568.7,6.3744]
[1744398753763,0.1976,1568.9,1568.5,13.88331]
[1744398753764,0.7749,1568.8,1568.5,13.88331]
[1744398754268,6.61721472,1568.7,1568.4,0.00898234]
[1744398754474,7.86836147,1568.6,1568.2,12.75331]
[1744398754777,1.49322147,1568.6,1568.2,12.75331]
[1744398754945,0.24046998,1568.5,1568.2,12.75331]
[1744398755472,1.49322147,1568.6,1568.2,12.75331]
[1744398755874,0.24046998,1568.5,1568.2,12.75331]
[1744398756177,0.24046998,1568.5,1568.2,6.37661]
[1744398756341,7.18650315,1568.5,1568.1,6.37702]
[1744398756568,0.99679355,1568.4,1568.1,12.75404]
[1744398757716,0.23989355,1568.4,1568.3,6.37633]
[1744398757988,6.8815,1568.6,1568.4,6.37584]
[1744398758379,7.56965,1568.6,1568.3,6.37633]
[1744398758781,7.56965,1568.6,1568.2,17.65993727]
[1744398759380,7.56965,1568.6,1568.3,6.37629]
[1744398761190,6.07,1568.6,1568.4,4.13751727]
[1744398761394,0.7766,1568.8,1568.4,4.13751727]
[1744398761602,0.7766,1568.8,1568.6,6.37509]
[1744398762599,7.7044,1568.9,1568.7,6.37447]
[1744398762784,7.7044,1568.9,1568.7,12.749]
[1744398762963,7.7044,1568.9,1568.7,6.37447]
[1744398763161,7.7044,1568.9,1568.6,16.88757727]
[1744398763402,7.7044,1568.9,1568.6,18.654205]
[1744398764588,0.9574,1568.9,1568.6,12.279145]
[1744398764906,0.9574,1568.9,1568.6,12.75]
[1744398765807,0.1976,1568.9,1568.7,6.37455]
[1744398765995,0.1976,1568.9,1568.8,6.37429]
[1744398766864,0.1976,1568.9,1568.8,11.37664393]
[1744398767069,0.1976,1568.9,1568.8,13.78920904]
[1744398767264,0.1976,1568.9,1568.8,13.72547566]
[1744398769403,0.438666,1568.9,1568.8,13.72547566]
[1744398769570,0.1976,1568.9,1568.8,13.72547566]
[1744398769771,0.438666,1568.9,1568.8,13.72547566]
[1744398770008,0.1976,1568.9,1568.8,13.72547566]
[1744398770212,0.43989794,1568.9,1568.8,13.72547566]
[1744398770387,0.1976,1568.9,1568.8,13.72547566]
[1744398770721,0.1976,1568.9,1568.8,14.74435411]
[1744398771012,0.44115698,1568.9,1568.8,14.74435411]
[1744398771214,0.1976,1568.9,1568.8,12.92437566]
[1744398771513,0.1976,1568.9,1568.7,12.74923]
[1744398771714,0.1976,1568.9,1568.7,12.74915]
[1744398771715,0.44120585,1568.9,1568.7,12.74915]
[1744398771877,0.44120585,1568.9,1568.7,6.37457]
[1744398772279,0.44120585,1568.9,1568.7,12.74915]
[1744398772621,0.44120585,1568.9,1568.7,6.37457]
[1744398772994,0.44120585,1568.9,1568.7,12.74915]
[1744398773501,0.44120585,1568.9,1568.8,6.37429]
[1744398776311,0.44120585,1568.9,1568.8,6.43802657]
[1744398776497,0.44120585,1568.9,1568.8,6.37429]
[1744398779645,0.44120585,1568.9,1568.8,6.43801953]
[1744398779800,0.44120585,1568.9,1568.8,6.37429]
[1744398780000,0.44120585,1568.9,1568.8,8.90862666]
[1744398780627,0.44120585,1568.9,1568.8,9.43982547]
[1744398781132,0.44120585,1568.9,1568.8,9.37609544]
[1744398781331,0.44120585,1568.9,1568.8,9.4398253]
[1744398781643,0.44120585,1568.9,1568.8,9.37609544]
[1744398781844,0.44120585,1568.9,1568.8,6.37429]
[1744398782539,0.44120585,1568.9,1568.8,6.43802774]
[1744398783523,0.44120585,1568.9,1568.8,6.37429]
[1744398784035,0.44120585,1568.9,1568.8,6.43802442]
[1744398784231,0.44120585,1568.9,1568.8,8.2245003]
[1744398784435,0.44120585,1568.9,1568.8,11.53772899]
[1744398784644,0.44120585,1568.9,1568.8,14.60145364]
[1744398784817,0.44120585,1568.9,1568.8,14.53772899]
[1744398785016,0.1976,1568.9,1568.8,14.53772899]
[1744398786449,0.42265151,1568.9,1568.8,14.53772899]
[1744398786661,0.1976,1568.9,1568.8,14.53772899]
[1744398787830,0.42553409,1568.9,1568.8,14.53772899]
[1744398788030,0.1976,1568.9,1568.8,14.53772899]
[1744398788434,0.4254364,1568.9,1568.8,14.53772899]
[1744398788687,0.1976,1568.9,1568.8,14.53772899]
[1744398789562,0.7808,1569.5,1569.3,6.372]
[1744398789767,0.7808,1569.5,1569.4,6.37186]
[1744398790489,0.33201914,1569.6,1569.4,6.37186]
[1744398790653,7.5515,1569.8,1569.5,12.74245]
[1744398790852,1.14373642,1569.8,1569.5,12.74245]
[1744398791483,1.14373642,1569.8,1569.5,6.37114]
[1744398791669,1.14373642,1569.8,1569.5,12.74246]
[1744398791871,1.14373642,1569.8,1569.5,6.37114]
[1744398792369,1.89509606,1569.8,1569.5,6.37114]
[1744398792772,0.8194,1569.7,1569.3,6.37214]
[1744398792944,0.8194,1569.7,1569.3,12.74429]
[1744398793148,0.8194,1569.7,1569.4,6.37175]
[1744398793455,0.8194,1569.7,1569.4,12.7435]
[1744398794049,0.8194,1569.7,1569.5,6.37123]
[1744398794888,0.8194,1569.7,1569.4,6.37177]
[1744398795082,0.8194,1569.7,1569.3,6.37214]
[1744398795286,2.28379561,1569.7,1569.3,12.7443]
[1744398796162,2.28379561,1569.7,1569.4,6.37176]
[1744398797006,2.28379561,1569.7,1569.4,12.7435]
[1744398797296,0.7633,1569.6,1569.4,12.74348]
[1744398797674,0.7633,1569.6,1569.4,6.37173]
[1744398798787,0.7633,1569.6,1569.4,12.74348]
[1744398799096,0.7633,1569.6,1569.4,6.37173]
[1744398799402,0.21086448,1569.5,1569.4,6.37173]
[1744398800075,0.21086448,1569.5,1569.3,6.37217]
[1744398800422,0.7646,1569.4,1569.2,6.3725]
[1744398800576,0.7646,1569.4,1569.2,12.74507]
[1744398800776,0.21054337,1569.3,1569.2,12.74507]
[1744398800977,0.7646,1569.4,1569.3,6.37226]
[1744398801399,0.7559,1569.5,1569.4,6.37175]
[1744398803615,0.8187,1569.6,1569.4,12.7435]
[1744398804204,0.8187,1569.6,1569.5,6.37145]
[1744398804519,0.8187,1569.6,1569.4,12.74343]
[1744398805718,0.8187,1569.6,1569.4,6.37168]
[1744398806313,0.8187,1569.6,1569.4,6.52128]
[1744398807821,0.8187,1569.6,1569.4,12.89302]
[1744398808315,0.8187,1569.6,1569.4,6.52128]
[1744398809227,0.8187,1569.6,1569.4,12.89304]
[1744398810984,0.8187,1569.6,1569.4,6.52128]
[1744398811388,0.8187,1569.6,1569.4,12.89303]
[1744398813137,0.8187,1569.6,1569.4,12.89304]
[1744398813341,0.8187,1569.6,1569.4,6.52128]
[1744398813517,0.8187,1569.6,1569.4,12.89302]
[1744398813931,0.8187,1569.6,1569.4,6.52128]
[1744398814224,0.21135288,1569.5,1569.4,6.52128]
[1744398814441,2.88e-06,1569.5,1569.4,16.95454327]
[1744398814602,17.11925387,1570.4,1570.0,6.36933]
[1744398814603,0.8312,1570.2,1570.0,6.36933]
[1744398814808,0.16529809,1570.1,1569.9,6.36973]
[1744398815029,0.16529809,1570.1,1569.9,12.73945]
[1744398815231,0.16529809,1570.1,1570.0,6.36942]
[1744398816242,0.16529809,1570.1,1570.0,6.68215248]
[1744398816614,0.16529809,1570.1,1570.0,7.03893881]
[1744398818848,0.16529809,1570.1,1570.0,6.68215248]
[1744398819352,0.16529809,1570.1,1570.0,0.31273248]
[1744398819643,1.69771094,1570.1,1570.0,0.31273248]
[1744398819836,1.69771094,1570.1,1569.7,12.74104]
[1744398820035,1.69771094,1570.1,1569.8,6.37021]
[1744398820248,1.69771094,1570.1,1569.8,12.74034]
[1744398820447,0.92799809,1570.1,1569.9,0.31252148]
[1744398820752,0.92799809,1570.1,1569.8,12.74026]
[1744398820926,0.92799809,1570.1,1569.9,6.36981]
[1744398821120,0.92799809,1570.1,1569.8,6.37013]
[1744398821518,1.25990285,1570.1,1569.8,12.74023]
[1744398821718,1.25990285,1570.1,1569.8,6.3701]
[1744398822215,1.25990285,1570.1,1569.8,12.7402]
[1744398823150,1.25990285,1570.1,1569.8,6.3701]
[1744398823456,1.25990285,1570.1,1569.8,12.74023]
[1744398824234,1.25990285,1570.1,1569.9,0.31238937]
[1744398824633,1.25990285,1570.1,1569.9,6.68213937]
[1744398824954,0.49720285,1570.1,1569.9,12.7395]
[1744398826163,0.49720285,1570.1,1570.0,6.36942]
[1744398827454,0.49720285,1570.1,1570.0,12.66994617]
[1744398827641,2.85e-06,1570.1,1570.0,28.25719698]
[1744398827828,0.13433221,1570.1,1570.0,24.05598781]
[1744398828037,0.05,1570.4,1570.3,7.1837]
[1744398828241,0.18605754,1570.4,1570.3,6.3682]
[1744398828445,0.05,1570.4,1570.3,2.12483212]
[1744398828659,0.18605754,1570.4,1570.3,0.35586939]
[1744398828864,0.05,1570.4,1570.3,0.35586939]
[1744398829360,0.19447243,1570.4,1570.3,6.3682]
[1744398829661,0.19447243,1570.4,1570.3,11.32121727]
[1744398829873,0.19447243,1570.4,1570.3,14.04516891]
[1744398830845,0.19447243,1570.4,1570.3,9.09215164]
[1744398831047,0.19447243,1570.4,1570.3,8.78037041]
[1744398831362,0.19447243,1570.4,1570.3,6.3682]
[1744398833075,0.19447243,1570.4,1570.2,16.87441727]
[1744398833458,0.19447243,1570.4,1570.3,6.3682]
[1744398833656,0.19447243,1570.4,1570.2,4.13751727]
[1744398834298,0.19447243,1570.4,1570.2,10.50612727]
[1744398834795,0.19447243,1570.4,1570.2,16.93830693]
[1744398835004,0.19447243,1570.4,1570.2,10.50601727]
[1744398835170,1.1753722,1571.0,1570.3,6.9182]
[1744398835356,1.1753722,1571.0,1570.9,4.13751727]
[1744398835987,1.1753722,1571.0,1570.7,11.30238727]
[1744398836191,1.1753722,1571.0,1570.7,10.50397727]
[1744398836380,1.1753722,1571.0,1570.8,6.36616]
[1744398836585,1.1753722,1571.0,1570.7,10.50401727]
[1744398836787,8.29493042,1571.0,1570.5,14.27308727]
[1744398837097,14.66064042,1571.0,1570.5,17.64035727]
[1744398837302,6.36585,1570.9,1570.5,10.50478727]
[1744398837510,0.8207,1570.8,1570.5,4.13751727]
[1744398837994,6.36659,1570.7,1570.3,10.50559727]
[1744398838198,1.355358,1570.7,1570.3,16.87368727]
[1744398838900,7.721948,1570.7,1570.3,10.50559727]
[1744398839104,0.7535,1570.6,1570.3,4.13751727]
[1744398839605,0.7535,1570.6,1570.3,10.50568727]
[1744398840473,0.7535,1570.6,1570.4,6.36777]
[1744398840675,0.7535,1570.6,1570.4,6.36768]
[1744398840972,0.7535,1570.6,1570.4,6.36767]
[1744398841200,0.7535,1570.6,1570.5,4.13751727]
[1744398841408,0.7847,1570.9,1570.6,6.36687]
[1744398841705,0.7847,1570.9,1570.7,10.50389727]
[1744398842078,0.7847,1570.9,1570.7,4.13751727]
[1744398842677,7.15061,1570.9,1570.5,10.50481727]
[1744398843398,7.1506,1570.9,1570.5,10.50481727]
[1744398843573,14.90737622,1570.9,1570.5,10.50481727]
[1744398844009,14.90737622,1570.9,1570.5,6.3673]
[1744398844212,14.90735622,1570.9,1570.5,6.3673]
[1744398844510,8.54143622,1570.9,1570.5,6.3673]
[1744398845097,8.54143622,1570.9,1570.5,10.50481727]
[1744398845299,0.85414362,1570.8,1570.5,10.50481727]
[1744398845707,0.7907,1570.7,1570.3,4.13751727]
[1744398845881,7.15741,1570.7,1570.3,16.87367727]
[1744398846078,7.15741,1570.7,1570.3,10.50559727]
[1744398846615,7.15741,1570.7,1570.4,0.31195256]
[1744398846909,2.22847336,1570.7,1570.3,16.87368727]
[1744398848515,2.22847336,1570.7,1570.4,6.36778]
[1744398849931,13.58665362,1570.8,1570.4,6.36778]
[1744398850102,13.58665362,1570.8,1570.5,4.13751727]
[1744398850103,6.36618,1570.8,1570.5,4.13751727]
[1744398850640,12.73251,1570.8,1570.5,4.13751727]
[1744398850946,12.73249,1570.8,1570.5,4.13751727]
[1744398851104,15.367499,1570.8,1570.5,4.13751727]
[1744398851306,15.367549,1570.8,1570.5,4.13751727]
[1744398852344,15.367509,1570.8,1570.5,4.13751727]
[1744398853047,0.8308,1570.7,1570.4,6.36768]
[1744398853255,7.19738,1570.7,1570.3,10.50557727]
[1744398853621,7.19738,1570.7,1570.4,0.31232962]
[1744398853926,8.77943968,1570.7,1570.4,0.31232962]
[1744398854125,8.77943968,1570.7,1570.3,16.87366727]
[1744398854324,8.77943968,1570.7,1570.3,10.50557727]
[1744398854666,7.17035,1570.5,1570.1,4.13751727]
[1744398854960,7.17035,1570.5,1570.2,0.35663798]
[1744398855155,8.524095,1570.5,1570.2,0.35663798]
[1744398855355,14.891695,1570.5,1570.2,0.35663798]
[1744398855569,6.36793,1570.4,1570.2,0.35663798]
[1744398855768,0.7931,1570.3,1570.2,0.35663798]
[1744398856072,0.7931,1570.3,1570.0,4.13751727]
[1744398856664,0.7931,1570.3,1570.1,0.31269921]
[1744398857028,0.7931,1570.3,1570.0,4.13751727]
[1744398857372,7.16134,1570.3,1570.0,4.13751727]
[1744398857566,7.877474,1570.3,1570.0,4.13751727]
[1744398857924,7.877474,1570.3,1569.8,24.35738727]
[1744398858480,7.877474,1570.3,1569.9,6.72669674]
[1744398858776,14.245834,1570.3,1570.0,0.31264689]
[1744398859063,7.877474,1570.3,1570.0,0.31264689]
[1744398859267,0.7931,1570.3,1570.0,4.13751727]
[1744398859468,0.7931,1570.3,1570.0,10.50670727]
[1744398860051,0.7931,1570.3,1570.0,16.87600727]
[1744398860256,0.7931,1570.3,1570.0,10.50670727]
[1744398860679,0.7931,1570.3,1570.0,4.13751727]
[1744398861073,0.7931,1570.3,1570.0,10.50693727]
[1744398862165,0.7931,1570.3,1570.0,16.87611727]
[1744398863387,6.07,1570.4,1570.1,0.8217]
[1744398863682,6.07,1570.4,1570.1,7.19071]
[1744398863842,12.4379,1570.4,1570.1,0.8217]
[1744398864043,12.4379,1570.4,1570.0,19.385429]
[1744398865780,18.80584,1570.4,1570.0,11.32850727]
[1744398865948,12.4379,1570.4,1570.0,11.32850727]
[1744398866145,18.8059,1570.4,1570.0,11.32850727]
[1744398866545,18.8059,1570.4,1570.0,4.95921727]
[1744398867273,6.36824,1570.3,1570.0,4.95921727]
[1744398868199,12.73597,1570.4,1570.0,4.95921727]
[1744398868350,15.5049515,1570.4,1570.0,4.95921727]
[1744398868545,9.1368815,1570.4,1570.0,11.32856727]
[1744398869062,15.5048915,1570.4,1570.0,11.32856727]
[1744398869893,9.1368815,1570.4,1570.0,11.32856727]
[1744398870095,15.5048915,1570.4,1570.0,11.32856727]
[1744398871184,15.5048915,1570.4,1570.0,4.95921727]
[1744398871484,6.36842,1570.3,1570.0,4.95921727]
[1744398871686,6.36902,1570.1,1569.8,4.90801727]
[1744398872876,6.36883,1570.2,1569.8,11.27813727]
[1744398873057,6.36883,1570.2,1569.8,17.64824727]
[1744398873252,12.73757,1570.2,1569.8,11.27812727]
[1744398873455,6.36874,1570.2,1569.8,13.342992]
[1744398873685,7.14715,1570.3,1569.8,13.342992]
[1744398873997,7.14715,1570.3,1569.9,12.73933]
[1744398874207,0.7789,1570.3,1570.0,10.50671727]
[1744398874500,6.5674,1570.5,1570.2,16.87445727]
[1744398874650,10.15417,1570.7,1570.2,16.87445727]
[1744398874651,0.7875,1570.7,1570.3,15.22416573]
[1744398874854,0.7875,1570.7,1570.3,15.53660878]
[1744398875278,7.15413,1570.7,1570.3,8.85608573]
[1744398877056,7.15413,1570.7,1570.3,15.22417573]
[1744398877302,7.15413,1570.7,1570.3,8.85608573]
[1744398877495,7.15413,1570.7,1570.4,0.88560857]
[1744398880001,0.7875,1570.7,1570.4,0.88560857]
[1744398880291,7.17122,1570.5,1570.1,13.50332]
[1744398880672,7.17122,1570.5,1570.1,13.50331]
[1744398880858,7.17122,1570.5,1570.2,0.31270005]
[1744398881153,7.17111,1570.5,1570.2,0.31270005]
[1744398881357,6.36841,1570.3,1569.9,7.13541]
[1744398881584,6.36841,1570.3,1569.9,13.50513]
[1744398881807,6.36841,1570.3,1570.0,0.31274988]
[1744398882407,6.36841,1570.3,1569.9,13.50512]
[1744398882565,6.36841,1570.3,1570.0,1.350512]
[1744398882754,13.88212,1570.5,1570.0,11.85731927]
[1744398883166,13.88212,1570.5,1570.0,11.85735927]
[1744398883167,20.24974,1570.5,1570.0,11.85735927]
[1744398883360,6.36804,1570.4,1570.0,7.719842]
[1744398883589,12.73614,1570.4,1570.0,7.719842]
[1744398883793,12.73614,1570.4,1570.1,0.31294265]
[1744398884373,6.36804,1570.4,1570.0,7.719842]
[1744398884694,6.36804,1570.4,1570.0,7.719832]
[1744398884995,6.36796,1570.4,1570.1,0.31301875]
[1744398885196,20.24965,1570.5,1570.1,7.45399195]
[1744398885394,6.36785,1570.4,1570.1,0.31301875]
[1744398885805,6.36785,1570.4,1570.0,14.089132]
[1744398886007,6.36785,1570.4,1570.0,7.719812]
[1744398886807,6.36785,1570.4,1570.1,0.31301814]
[1744398887210,6.36785,1570.4,1570.2,0.31301814]
[1744398887378,8.392844,1570.4,1570.2,0.31301814]
[1744398887578,8.392844,1570.4,1570.0,12.7386]
[1744398887793,6.36785,1570.4,1570.0,12.7386]
[1744398888008,6.36785,1570.4,1570.1,0.31302282]
[1744398888252,12.43628,1570.8,1570.5,0.7793]
[1744398888453,7.19679,1570.9,1570.5,7.14657]
[1744398888656,6.4622722,1571.0,1570.6,10.56791728]
[1744398888948,7.82808742,1571.0,1570.6,10.50424727]
[1744398889147,14.19357742,1571.0,1570.5,7.14658]
[1744398889334,7.15328,1570.9,1570.5,4.91681727]
[1744398889541,13.5194,1570.9,1570.5,4.91681727]
[1744398890054,13.5194,1570.9,1570.6,0.31269139]
[1744398890257,1.35194,1570.8,1570.6,0.31269139]
[1744398890656,1.35194,1570.8,1570.5,4.91681727]
[1744398891606,1.35194,1570.8,1570.5,11.28411727]
[1744398891812,0.7874,1570.9,1570.5,17.65141727]
[1744398892349,0.7874,1570.9,1570.6,0.3123827]
[1744398892553,21.32421742,1571.0,1570.6,0.3123827]
[1744398892914,21.32421742,1571.0,1570.5,17.65141727]
[1744398893250,21.32423742,1571.0,1570.5,17.65139727]
[1744398894171,15.25423742,1571.0,1570.5,17.65139727]
[1744398894374,15.25423742,1571.0,1570.5,19.416537]
[1744398894673,15.25423742,1571.0,1570.6,0.31227407]
[1744398895259,15.25423742,1571.0,1570.5,19.416537]
[1744398895580,6.3658,1570.9,1570.5,2.54443973]
[1744398895876,6.36649,1570.8,1570.5,0.7793]
[1744398896377,12.73179,1570.9,1570.5,0.7793]
[1744398897669,0.3922722,1571.0,1570.6,0.783]
[1744398897871,0.3922722,1571.0,1570.6,7.21345831]
[1744398898072,0.3922722,1571.0,1570.7,1.03349306]
[1744398898280,0.3922722,1571.0,1570.8,0.7844]
[1744398898281,6.7576922,1571.0,1570.8,0.7844]
[1744398898440,13.1232322,1571.0,1570.7,1.09654723]
[1744398898639,13.1232322,1571.0,1570.7,0.7844]
[1744398898841,6.7576922,1571.0,1570.7,0.7844]
[1744398899050,13.1232522,1571.0,1570.7,0.7844]
[1744398899742,6.7576922,1571.0,1570.7,0.7844]
[1744398900582,0.3922722,1571.0,1570.8,6.42969147]
[1744398900790,0.3922722,1571.0,1570.9,7.14007]
[1744398901092,0.3922722,1571.0,1570.9,11.34124304]
[1744398901450,0.3922722,1571.0,1570.9,11.65325696]
[1744398902184,0.3922722,1571.0,1570.9,12.00921]
[1744398902391,0.3922722,1571.0,1570.9,13.866528]
[1744398902593,0.3922722,1571.0,1570.9,13.80287223]
[1744398902776,0.3922722,1571.0,1570.9,0.66796696]
[1744398903092,0.3922722,1571.0,1570.7,7.96404145]
[1744398903467,6.36614,1570.9,1570.6,0.8124]
[1744398903665,6.3663,1570.8,1570.6,0.8124]
[1744398903866,6.36614,1570.9,1570.6,0.8124]
[1744398904061,6.36595,1570.9,1570.6,0.8124]
[1744398904288,13.51755,1570.9,1570.4,17.72772549]
[1744398904488,7.15143,1570.9,1570.5,8.14014255]
[1744398904989,12.73191,1570.9,1570.5,8.14014255]
[1744398905193,6.36658,1570.7,1570.4,4.13751727]
[1744398905498,6.36626,1570.8,1570.4,0.8218]
[1744398906101,6.36626,1570.8,1570.4,7.18957]
[1744398906463,6.36626,1570.8,1570.4,13.55725]
[1744398906669,6.36626,1570.8,1570.4,7.18948]
[1744398906867,6.36626,1570.8,1570.4,9.215539]
[1744398907149,13.52746,1570.9,1570.4,15.583209]
[1744398907665,6.36626,1570.8,1570.4,9.215529]
[1744398908600,6.36626,1570.8,1570.4,15.583219]
[1744398908919,6.36626,1570.8,1570.4,9.215529]
[1744398909430,6.36626,1570.8,1570.4,15.583219]
[1744398909579,6.36626,1570.8,1570.6,0.7683]
[1744398910316,6.36626,1570.8,1570.4,6.36767]
[1744398910317,6.36626,1570.8,1570.4,0.7683]
[1744398910527,6.36659,1570.7,1570.4,0.7683]
[1744398911226,12.73282,1570.8,1570.4,4.90581727]
[1744398911435,6.36626,1570.8,1570.4,4.90581727]
[1744398911593,6.36626,1570.8,1570.4,11.27351727]
[1744398911789,6.36719,1570.6,1570.4,0.7683]
[1744398912199,6.36719,1570.6,1570.2,0.7812]
[1744398912408,12.73434,1570.6,1570.2,0.7812]
[1744398913475,12.73506,1570.5,1570.1,4.91871727]
[1744398913704,14.008566,1570.5,1570.1,4.91871727]
[1744398913905,7.17923,1570.4,1570.1,4.91871727]
[1744398914122,7.17923,1570.4,1570.0,0.777]
[1744398914424,12.7367,1570.3,1570.0,0.777]
[1744398914589,12.73762,1570.2,1569.8,0.777]
[1744398914779,14.011382,1570.2,1569.8,0.777]
[1744398914980,7.15723,1570.1,1569.8,0.777]
[1744398915487,13.52649,1570.1,1569.8,0.777]
[1744398915882,13.52649,1570.1,1569.7,10.57184715]
[1744398915883,13.52649,1570.1,1569.7,11.36084715]
[1744398916095,13.52649,1570.1,1569.7,4.99021715]